bitfinex/quotes_SOLUSD_20240716
["timestamp","ask_amount","ask_price","bid_price","bid_amount"]
[1721145283576,22.2007,160.75,160.66,18.92]
[1721145283744,6.222,160.72,160.64,15.5618]
[1721145283935,6.2216,160.73,160.65,0.40674544]
[1721145284131,28.4219,160.75,160.67,15.5596]
[1721145284459,28.4219,160.75,160.68,0.84435754]
[1721145284460,28.4217,160.75,160.68,0.84435754]
[1721145284662,22.2007,160.75,160.64,15.5626]
[1721145284838,22.2007,160.75,160.7,15.5564]
[1721145285037,22.2007,160.75,160.71,1.24407875]
[1721145285233,646.55085693,160.93,160.75,15.5519]
[1721145285234,22.8187,160.82,160.75,15.5519]
[1721145285548,29.0372,160.82,160.76,1.24372346]
[1721145285732,22.8187,160.82,160.77,7.46339935]
[1721145285934,22.8187,160.82,160.78,0.47613137]
[1721145286145,22.8187,160.82,160.78,1.24352611]
[1721145286357,22.8187,160.82,160.76,6.2201]
[1721145286551,22.8187,160.82,160.77,1.24352667]
[1721145286742,22.8187,160.82,160.8,6.2188]
[1721145286944,22.8187,160.82,160.81,1.24348844]
[1721145287136,22.8187,160.82,160.78,6.2193]
[1721145287351,22.8187,160.82,160.77,21.77]
[1721145287536,6.2186,160.81,160.78,1.24302438]
[1721145287736,22.8187,160.82,160.78,1.24302438]
[1721145288051,29.0369,160.82,160.75,40.6917]
[1721145288250,29.0369,160.82,160.76,6.2202]
[1721145288564,29.0369,160.82,160.77,16.79286335]
[1721145288565,22.8187,160.82,160.77,16.79286335]
[1721145288900,22.8187,160.82,160.78,6.2196]
[1721145289067,22.8187,160.82,160.77,16.79286335]
[1721145289068,23.4641305,160.82,160.77,23.01286335]
[1721145289365,23.4641305,160.82,160.73,15.5533]
[1721145289535,23.4641305,160.82,160.61,47.525]
[1721145289536,6.2205,160.76,160.66,42.36392939]
[1721145289734,0.6454305,160.82,160.71,31.1108]
[1721145289938,0.6454305,160.82,160.81,6.2185]
[1721145290155,0.6454305,160.82,160.81,7.46154476]
[1721145290361,0.6454305,160.82,160.81,7.46153354]
[1721145290559,0.6454305,160.82,160.81,1.24303354]
[1721145290736,0.6454305,160.82,160.81,7.46153354]
[1721145293156,0.6454305,160.82,160.81,25.1385]
[1721145293464,0.6454305,160.82,160.81,25.3085]
[1721145293669,673.57453383,160.93,160.85,15.5417]
[1721145293961,6.2147,160.91,160.86,6.2165]
[1721145294159,673.57483383,160.93,160.86,6.2165]
[1721145294381,667.36063383,160.93,160.87,16.78264654]
[1721145294542,667.36063383,160.93,160.89,6.2151]
[1721145294741,667.36063383,160.93,160.87,15.5398]
[1721145294742,667.36063383,160.93,160.88,6.2157]
[1721145294965,667.36063383,160.93,160.87,15.5398]
[1721145294966,667.36063383,160.93,160.89,6.2153]
[1721145295180,667.36063383,160.93,160.9,1.24270644]
[1721145295375,667.36063383,160.93,160.92,6.2142]
[1721145295583,645.36283383,160.93,160.92,21.7498]
[1721145298374,645.36283383,160.93,160.9,6.2146]
[1721145298571,645.36283383,160.93,160.86,15.5411]
[1721145298777,645.36283383,160.93,160.86,21.7576]
[1721145298973,651.57663383,160.93,160.87,7.45867974]
[1721145299287,651.57703383,160.93,160.88,6.2157]
[1721145299463,645.36283383,160.93,160.92,6.2142]
[1721145299675,645.36283383,160.93,160.88,6.2154]
[1721145299981,645.36283383,160.93,160.81,10.0]
[1721145300181,645.36283383,160.93,160.79,20.0]
[1721145300393,645.36283383,160.93,160.89,15.5381]
[1721145300558,645.36283383,160.93,160.9,6.2146]
[1721145300758,645.36283383,160.93,160.79,10.0]
[1721145300958,645.36283383,160.93,160.87,6.2161]
[1721145301177,6.2148,160.91,160.85,6.2169]
[1721145301360,645.36283383,160.93,160.86,7.45946083]
[1721145301361,6.2145,160.92,160.86,7.45946083]
[1721145301564,6.2145,160.92,160.86,6.2165]
[1721145301882,6.2147,160.91,160.85,21.7582]
[1721145302279,6.2154,160.9,160.85,15.5416]
[1721145302878,6.2151,160.9,160.84,6.2173]
[1721145303058,6.2149,160.91,160.85,1.24304693]
[1721145303260,1.01313799,160.92,160.86,1.24308823]
[1721145303568,1.01313799,160.92,160.84,15.5424]
[1721145303897,1.01313799,160.92,160.83,6.2176]
[1721145304089,6.2162,160.87,160.81,21.7641]
[1721145304272,6.2158,160.88,160.82,6.218]
[1721145304584,22.2173,160.87,160.74,18.92]
[1721145304789,22.0473,160.87,160.81,6.2183]
[1721145305098,22.0473,160.87,160.82,1.24333773]
[1721145305404,22.0473,160.87,160.83,1.24320236]
[1721145305560,22.0473,160.87,160.82,15.5448]
[1721145305761,22.0473,160.87,160.84,6.2171]
[1721145305960,22.0473,160.87,160.85,1.24319185]
[1721145306180,22.0473,160.87,160.82,15.5448]
[1721145306584,22.0473,160.87,160.84,15.5424]
[1721145306781,645.36283383,160.93,160.92,6.2142]
[1721145307377,645.36283383,160.93,160.89,6.2151]
[1721145307575,1.01313799,160.92,160.84,15.543]
[1721145307776,42.30313799,160.92,160.84,15.543]
[1721145307994,6.217,160.85,160.8,6.2188]
[1721145308286,1.01313799,160.84,160.79,6.2192]
[1721145308461,6.2175,160.84,160.78,21.7683]
[1721145308658,6.2179,160.83,160.78,15.5488]
[1721145308866,1.01313799,160.87,160.79,1.24366312]
[1721145309162,1.01313799,160.87,160.8,1.24358577]
[1721145309363,7.22963799,160.87,160.81,6.2184]
[1721145309578,7.22963799,160.87,160.8,21.7652]
[1721145309891,6.2175,160.84,160.78,6.2193]
[1721145310092,6.2166,160.86,160.8,6.2187]
[1721145310272,15.5381,160.9,160.79,15.5477]
[1721145310273,6.2174,160.84,160.79,15.5477]
[1721145310590,1.01313799,160.88,160.8,7.4624006]
[1721145310765,6.2162,160.87,160.81,6.2184]
[1721145310962,63.3101,160.85,160.7,6.50442225]
[1721145311182,6.218,160.83,160.67,10.0]
[1721145311388,1.55470149,160.84,160.73,0.83478604]
[1721145311566,17.09987757,160.82,160.68,6.50573447]
[1721145311768,1.55457757,160.82,160.69,12.8533]
[1721145311959,645.36283383,160.93,160.69,12.8533]
[1721145311960,645.36283383,160.93,160.86,6.2165]
[1721145312292,1.55355665,160.92,160.86,6.2163]
[1721145312461,1.55355665,160.92,160.82,15.5452]
[1721145312663,1.55355665,160.92,160.84,15.5425]
[1721145312861,6.2147,160.91,160.84,13.0425]
[1721145313084,1.55399645,160.9,160.84,13.0425]
[1721145313287,1.55400415,160.89,160.84,13.0425]
[1721145313666,1.55407639,160.92,160.84,13.0425]
[1721145313994,645.36283383,160.93,160.82,18.92]
[1721145314194,6.2163,160.87,160.74,30.0]
[1721145314396,1.55365882,160.92,160.78,15.5491]
[1721145314397,1.55425781,160.86,160.78,15.5491]
[1721145314690,6.2174,160.84,160.78,15.5491]
[1721145314894,1.55462825,160.84,160.77,6.2197]
[1721145315096,28.4004,160.85,160.84,6.2173]
[1721145315097,16.0102,160.85,160.84,6.2173]
[1721145315463,7.42963859,160.91,160.78,18.92]
[1721145315464,6.1729,160.91,160.78,18.92]
[1721145315670,539.64536155,160.93,160.92,43.43983859]
[1721145315885,143.3007554,160.93,160.92,43.1873174]
[1721145316062,1.18141322,160.94,160.92,83.0398]
[1721145316261,1.322e-05,160.94,160.93,25.155]
[1721145316491,13.61804271,161.0,160.99,21.7404]
[1721145316892,13.61804271,161.0,160.99,50.6604]
[1721145317073,5.724e-05,161.04,161.03,81.7051]
[1721145317278,6.104e-05,161.1,161.09,50.6469]
[1721145317792,6.104e-05,161.1,161.09,102.84067896]
[1721145318005,6.104e-05,161.1,161.09,60.9869]
[1721145318175,6.104e-05,161.1,161.09,169.92675823]
[1721145318379,6.104e-05,161.1,161.09,122.0254]
[1721145318901,41.29,161.35,161.18,15.5098]
[1721145318902,41.1268038,161.31,161.18,15.5098]
[1721145319073,6.2007,161.28,161.18,15.5098]
[1721145319271,41.1268038,161.31,161.18,15.5098]
[1721145319272,6.2013,161.26,161.18,15.5098]
[1721145319471,15.497,161.33,161.14,15.5141]
[1721145319672,41.29,161.31,161.24,6.2017]
[1721145319894,1.55028301,161.32,161.22,15.5066]
[1721145320092,1.55004025,161.35,161.24,6.2017]
[1721145320275,1.55004025,161.35,161.22,15.5066]
[1721145320475,6.2011,161.26,161.17,15.5107]
[1721145320811,1.55048411,161.25,161.13,15.515]
[1721145320967,15.5001,161.29,161.13,15.515]
[1721145320968,6.2025,161.23,161.16,6.2048]
[1721145321165,6.2031,161.21,161.13,15.515]
[1721145321381,16.6556,161.25,161.13,6.2061]
[1721145321575,20.17,161.24,161.14,6.2055]
[1721145321893,20.17,161.24,161.13,6.206]
[1721145322195,20.17,161.24,161.16,6.2049]
[1721145322196,0.17,161.24,161.16,6.2049]
[1721145322380,16.6556,161.25,161.18,15.5099]
[1721145322580,6.2031,161.21,161.1,31.0351]
[1721145322792,6.2031,161.21,161.04,10.0]
[1721145322793,6.203,161.22,161.13,6.2057]
[1721145322971,6.2035,161.2,161.13,6.206]
[1721145323173,73.4501,161.25,161.08,15.5197]
[1721145323402,41.29,161.21,161.08,15.5197]
[1721145323575,6.2063,161.13,161.04,15.5238]
[1721145323770,41.29,161.17,161.04,15.5238]
[1721145324091,41.29,161.13,161.0,15.5274]
[1721145324299,41.29,161.13,160.91,10.0]
[1721145324300,6.2296,161.12,160.98,31.0578]
[1721145324480,6.2296,161.12,160.94,15.5238]
[1721145324681,16.3938,161.1,160.99,15.5282]
[1721145325087,16.3938,161.1,161.0,1.24172165]
[1721145325489,16.3938,161.1,160.99,15.5282]
[1721145325670,6.2094,161.05,160.99,15.5282]
[1721145326004,16.3938,161.1,161.0,1.24196845]
[1721145326005,41.29,161.07,161.0,1.24196845]
[1721145326176,16.3938,161.1,160.98,21.7406]
[1721145326177,6.2096,161.04,160.98,21.7406]
[1721145326376,6.2092,161.05,160.99,7.45340608]
[1721145326576,6.2087,161.07,161.0,6.2111]
[1721145326777,6.49643687,161.09,160.98,15.5291]
[1721145326778,6.2096,161.04,160.98,15.5291]
[1721145326991,6.2101,161.03,160.94,34.4528]
[1721145327196,15.5206,161.08,160.96,6.2126]
[1721145327387,6.49643687,161.09,160.97,1.24208866]
[1721145327595,6.49643687,161.09,160.99,10.0]
[1721145327896,15.3765,161.19,161.0,20.16136069]
[1721145328073,15.3765,161.19,161.09,15.5192]
[1721145328276,6.205,161.16,161.1,7.44779013]
[1721145328474,6.49219349,161.2,161.11,1.24084712]
[1721145328781,6.2042,161.19,161.12,21.7223]
[1721145328977,6.2043,161.18,161.12,15.5158]
[1721145329182,6.2038,161.2,161.13,1.24028868]
[1721145329393,6.2039,161.19,161.13,7.44638868]
[1721145329914,15.3765,161.28,161.21,6.2029]
[1721145330076,15.3765,161.28,161.23,6.2021]
[1721145330283,15.3765,161.28,161.14,0.17]
[1721145330497,15.3765,161.28,161.11,7.93600803]
[1721145330790,56.6665,161.28,161.12,20.16064423]
[1721145330994,56.6665,161.28,161.09,10.0]
[1721145331201,62.8668,161.28,161.1,1.43591124]
[1721145331393,6.2008,161.27,161.1,1.43591124]
[1721145331580,15.3765,161.28,161.14,31.0279]
[1721145331787,6.2011,161.27,161.2,6.2033]
[1721145332104,15.3765,161.28,161.21,15.5074]
[1721145332411,6.2008,161.27,161.19,6.2034]
[1721145332605,15.3765,161.28,161.14,31.0279]
[1721145332606,15.3765,161.28,161.17,6.2045]
[1721145332813,6.2026,161.23,161.15,15.5125]
[1721145333100,6.2024,161.23,161.15,15.5125]
[1721145333304,30.8778,161.28,161.11,15.5164]
[1721145333305,15.5038,161.25,161.11,15.5164]
[1721145333507,41.46,161.24,161.11,15.5164]
[1721145333710,6.2043,161.18,161.12,6.2065]
[1721145333934,20.17,161.23,161.04,15.5125]
[1721145333935,15.507,161.22,161.04,15.5125]
[1721145334084,20.17,161.21,161.1,15.5183]
[1721145334287,41.29,161.24,161.08,31.0404]
[1721145334588,6.2009,161.27,161.21,6.2029]
[1721145334807,15.3765,161.28,161.17,15.5106]
[1721145335017,6.2015,161.25,161.2,15.5084]
[1721145335189,15.3765,161.28,161.2,15.5084]
[1721145335398,15.3765,161.28,161.17,31.023]
[1721145335694,6.2011,161.27,161.18,15.5098]
[1721145335896,15.3765,161.28,161.18,15.5098]
[1721145336103,15.3765,161.28,161.09,1.43600037]
[1721145336302,56.6665,161.28,161.05,10.0]
[1721145336504,15.5034,161.26,161.06,20.16032437]
[1721145336685,56.6665,161.28,161.1,18.92]
[1721145336893,56.6665,161.28,161.09,10.0]
[1721145336894,15.3765,161.28,161.12,18.92]
[1721145337192,15.3765,161.28,161.23,15.5051]
[1721145337397,6.141,161.29,161.26,15.5028]
[1721145337613,6.141,161.29,161.26,21.7036]
[1721145337918,6.141,161.29,161.25,6.2015]
[1721145338093,6.141,161.29,161.22,15.5062]
[1721145338613,6.141,161.29,161.17,49.673]
[1721145338913,6.141,161.29,161.25,15.5034]
[1721145339083,6.141,161.29,161.25,6.2014]
[1721145339397,6.141,161.29,161.22,15.5065]
[1721145339706,6.141,161.29,161.25,6.2015]
[1721145339890,6.141,161.29,161.22,16.74651422]
[1721145340099,6.141,161.29,161.19,15.5094]
[1721145340305,6.2015,161.25,161.2,1.24050029]
[1721145340616,6.2015,161.25,161.19,6.2038]
[1721145340815,6.2015,161.25,161.09,20.0]
[1721145340816,15.503,161.26,161.14,15.5138]
[1721145341122,20.0,161.28,161.16,15.5116]
[1721145341415,41.46,161.27,161.17,1.24019581]
[1721145341725,41.29,161.27,161.12,18.65]
[1721145341893,20.0,161.26,161.13,34.1653]
[1721145342216,6.2042,161.18,161.13,6.2061]
[1721145342420,6.1998,161.3,161.23,6.2019]
[1721145342628,6.78800241,161.35,161.25,15.5038]
[1721145342799,0.3017392,161.35,161.28,6.2]
[1721145343207,6.1981,161.34,161.28,6.2]
[1721145343520,6.1989,161.32,161.26,6.201]
[1721145343817,0.3017392,161.35,161.3,6.1995]
[1721145344195,0.3017392,161.35,161.29,15.4991]
[1721145344717,0.3017392,161.35,161.3,6.1995]
[1721145344894,0.3017392,161.35,161.29,15.4991]
[1721145345096,0.3017392,161.35,161.33,6.1984]
[1721145345415,0.3017392,161.35,161.3,15.4983]
[1721145345619,0.3017392,161.35,161.31,6.1989]
[1721145345819,0.3017392,161.35,161.3,15.4983]
[1721145345820,0.3017392,161.35,161.32,6.1987]
[1721145346025,0.3017392,161.35,161.26,15.502]
[1721145346231,0.3017392,161.35,161.29,6.1998]
[1721145346396,0.3017392,161.35,161.26,15.502]
[1721145346397,6.1987,161.33,161.26,15.502]
[1721145346598,0.3017392,161.35,161.26,21.7031]
[1721145346599,6.1988,161.32,161.26,21.7031]
[1721145346892,6.1981,161.34,161.28,6.2002]
[1721145347100,0.3017392,161.35,161.23,15.5057]
[1721145347323,15.7965392,161.35,161.24,6.2018]
[1721145347624,20.17,161.34,161.23,15.5057]
[1721145347825,20.0,161.34,161.23,21.7076]
[1721145348022,6.1996,161.3,161.23,15.5057]
[1721145348226,6.1988,161.32,161.23,15.5057]
[1721145348527,6.1984,161.33,161.27,15.5013]
[1721145348714,0.3017392,161.35,161.21,31.0147]
[1721145348919,0.3017392,161.35,161.29,15.4993]
[1721145349320,0.3017392,161.35,161.3,6.1992]
[1721145349512,0.3017392,161.35,161.26,15.5026]
[1721145349712,0.3017392,161.35,161.27,1.2399081]
[1721145349931,6.1981,161.34,161.29,6.1998]
[1721145350107,6.1981,161.34,161.22,18.65]
[1721145350108,0.3017392,161.35,161.3,15.4983]
[1721145350305,0.3017392,161.35,161.34,6.198]
[1721145350700,0.3017392,161.35,161.33,15.4961]
[1721145351209,0.3017392,161.35,161.29,30.9989]
[1721145351448,0.3017392,161.35,161.33,6.1981]
[1721145351931,0.3017392,161.35,161.31,21.6963]
[1721145352133,0.3017392,161.35,161.31,15.4975]
[1721145352629,0.3017392,161.35,161.34,6.198]
[1721145353606,0.3017392,161.35,161.34,7.0683634]
[1721145353804,0.3017392,161.35,161.33,15.4954]
[1721145354038,0.3017392,161.35,161.34,6.198]
[1721145356732,102.276955,161.41,161.4,6.1957]
[1721145356933,102.276955,161.41,161.4,35.0157]
[1721145357229,102.276955,161.41,161.4,26.44894226]
[1721145357409,102.096955,161.41,161.4,36.44894226]
[1721145357608,102.096955,161.41,161.4,33.8941833]
[1721145357821,49.80027812,161.41,161.4,47.30858574]
[1721145358022,37.39407812,161.41,161.4,57.30858574]
[1721145358234,37.39407812,161.41,161.4,47.30858574]
[1721145358626,1.9460378,161.52,161.51,21.6704]
[1721145358928,1.9460378,161.52,161.51,29.11564104]
[1721145359639,1.9460378,161.52,161.51,30.35337646]
[1721145359805,1.9460378,161.52,161.51,22.90813542]
[1721145360007,1.9460378,161.52,161.51,21.8404]
[1721145360216,1.9460378,161.52,161.51,24.320968]
[1721145360415,1.9460378,161.52,161.51,24.490968]
[1721145360607,1.5860378,161.52,161.51,43.140968]
[1721145361414,1.5860378,161.52,161.51,44.57323412]
[1721145362310,3.78e-05,161.52,161.51,44.57323412]
[1721145362515,3.78e-05,161.52,161.51,54.57323412]
[1721145362734,3.78e-05,161.52,161.51,44.57323412]
[1721145363047,3.78e-05,161.52,161.51,54.57323412]
[1721145363247,3.78e-05,161.52,161.51,44.57323412]
[1721145363545,3.78e-05,161.52,161.51,44.23323412]
[1721145363917,0.03899528,161.53,161.52,24.8411]
[1721145364316,0.03899528,161.53,161.52,7.42869025]
[1721145364520,0.03899528,161.53,161.52,1.23759025]
[1721145364721,0.03899528,161.53,161.47,15.4819]
[1721145365024,6.22989528,161.53,161.48,1.23734407]
[1721145365320,6.22989528,161.53,161.4,18.65]
[1721145365321,6.0876,161.51,161.4,18.65]
[1721145365531,6.0876,161.51,161.45,15.4837]
[1721145365730,6.0876,161.51,161.43,6.229896]
[1721145366121,6.1927,161.48,161.43,6.229896]
[1721145366347,6.0876,161.51,161.43,6.229896]
[1721145366525,6.1924,161.49,161.43,12.424396]
[1721145366728,6.0876,161.51,161.44,16.7238013]
[1721145366924,21.5667,161.51,161.44,1.2385013]
[1721145367126,6.0876,161.51,161.44,1.2385013]
[1721145367440,6.0876,161.51,161.5,6.1919]
[1721145367754,6.0876,161.51,161.4,18.65]
[1721145367941,6.0876,161.51,161.43,15.4857]
[1721145368241,12.2793,161.51,161.44,6.1939]
[1721145368415,6.1921,161.5,161.44,6.1939]
[1721145368622,6.0876,161.51,161.4,15.4892]
[1721145368850,6.0876,161.51,161.36,25.8652]
[1721145369147,6.0876,161.51,161.5,6.1919]
[1721145369317,6.0876,161.51,161.43,30.9712]
[1721145369527,6.0876,161.51,161.37,1.43350871]
[1721145370032,6.0876,161.51,161.39,34.1395]
[1721145370231,6.0876,161.51,161.37,1.43350871]
[1721145370232,21.5674,161.51,161.37,1.43350871]
[1721145370431,6.1927,161.48,161.42,6.1946]
[1721145370636,6.0876,161.51,161.37,1.43350871]
[1721145370637,47.3776,161.51,161.37,1.43350871]
[1721145370845,6.1944,161.44,161.34,30.9895]
[1721145371144,47.3776,161.51,161.38,15.4912]
[1721145371145,15.4817,161.49,161.38,15.4912]
[1721145371325,6.1939,161.45,161.39,6.1961]
[1721145371649,47.3776,161.51,161.41,15.4883]
[1721145371853,20.0,161.5,161.35,18.65]
[1721145372029,47.3776,161.51,161.35,18.65]
[1721145372353,15.4801,161.5,161.4,15.4886]
[1721145372532,6.1932,161.47,161.41,6.195]
[1721145372845,6.1919,161.5,161.42,15.4866]
[1721145373045,47.3776,161.51,161.44,15.4849]
[1721145373425,6.194,161.45,161.39,6.1961]
[1721145373925,21.95613327,161.49,161.38,6.1962]
[1721145374235,21.95613327,161.49,161.37,15.4914]
[1721145374236,15.4809,161.49,161.37,15.4914]
[1721145374441,6.47589233,161.48,161.35,18.65]
[1721145374624,15.4809,161.49,161.34,30.9895]
[1721145374625,6.1926,161.49,161.42,6.1947]
[1721145374951,15.4808,161.49,161.34,30.9895]
[1721145375143,15.4808,161.49,161.39,15.4903]
[1721145375326,20.0,161.48,161.36,15.4932]
[1721145375531,15.4834,161.47,161.36,21.6901]
[1721145375733,6.1955,161.41,161.35,6.1974]
[1721145375944,20.0,161.46,161.3,30.9964]
[1721145375945,6.1947,161.43,161.3,30.9964]
[1721145376127,41.29,161.47,161.38,15.4907]
[1721145376322,20.0,161.46,161.38,15.4907]
[1721145376641,15.4849,161.45,161.27,6.48077137]
[1721145376845,6.1953,161.42,161.34,15.4945]
[1721145377038,15.4849,161.45,161.34,15.4945]
[1721145377246,6.1957,161.41,161.35,6.1973]
[1721145377443,15.4849,161.45,161.34,15.4945]
[1721145377758,20.0,161.44,161.36,15.4927]
[1721145377947,20.0,161.44,161.35,6.1973]
[1721145378145,20.0,161.44,161.34,6.1979]
[1721145378146,6.1958,161.4,161.34,6.1979]
[1721145378339,20.0,161.44,161.33,15.4958]
[1721145378541,6.1964,161.39,161.33,21.6941]
[1721145378858,6.1931,161.47,161.39,30.9794]
[1721145379152,6.1931,161.47,161.41,6.1952]
[1721145379328,15.8652,161.52,161.45,6.1937]
[1721145379527,6.1921,161.5,161.45,6.1936]
[1721145379761,6.1921,161.5,161.43,15.4859]
[1721145379762,6.0876,161.51,161.43,15.4859]
[1721145380048,6.0876,161.51,161.44,1.12987338]
[1721145380260,6.0876,161.51,161.42,0.17]
[1721145380552,6.0876,161.51,161.42,45.0]
[1721145380847,12.2793,161.51,161.45,6.1937]
[1721145381051,6.0876,161.51,161.46,28.3334]
[1721145381255,6.0876,161.51,161.42,45.0]
[1721145382144,6.907049,161.51,161.43,1.23842517]
[1721145382326,6.907049,161.51,161.5,6.1919]
[1721145382529,6.907049,161.51,161.48,18.65]
[1721145382741,6.907049,161.51,161.47,30.9646]
[1721145383534,6.907049,161.51,161.44,0.34]
[1721145383736,6.907049,161.51,161.43,18.65]
[1721145384051,6.907049,161.51,161.44,1.23828186]
[1721145384432,4.428e-05,161.53,161.5,12.3234]
[1721145384630,4.428e-05,161.53,161.46,10.0]
[1721145384835,4.428e-05,161.53,161.47,18.65]
[1721145385145,4.428e-05,161.53,161.52,15.0024]
[1721145385348,4.428e-05,161.53,161.43,30.9719]
[1721145385839,6.19084428,161.53,161.43,30.9719]
[1721145386047,4.428e-05,161.53,161.43,30.9719]
[1721145386243,4.428e-05,161.53,161.51,6.1912]
[1721145386429,4.428e-05,161.53,161.52,6.1911]
[1721145386635,4.428e-05,161.53,161.52,7.42909821]
[1721145387849,4.428e-05,161.53,161.52,6.1911]
[1721145388051,4.428e-05,161.53,161.52,26.07897421]
[1721145388252,5.0,161.56,161.55,21.665]
[1721145389050,5.0,161.56,161.52,21.6684]
[1721145389244,5.0,161.56,161.53,6.1906]
[1721145389550,5.0,161.56,161.52,15.4776]
[1721145390146,5.0,161.56,161.54,6.1903]
[1721145390366,5.0,161.56,161.53,6.1907]
[1721145390866,5.0,161.56,161.51,6.1911]
[1721145391063,5.0,161.56,161.54,6.1903]
[1721145391953,5.0,161.56,161.55,6.19]
[1721145392145,5.0,161.56,161.53,15.4764]
[1721145392348,5.0,161.56,161.51,30.9568]
[1721145392546,0.8286455,161.64,161.63,6.1869]
[1721145394957,0.8286455,161.64,161.59,46.4118]
[1721145395141,0.8286455,161.64,161.6,0.97371434]
[1721145395340,0.8286455,161.64,161.61,15.4687]
[1721145395548,0.8286455,161.64,161.62,6.187]
[1721145395755,0.8286455,161.64,161.61,15.4687]
[1721145396350,0.8286455,161.64,161.63,6.1869]
[1721145397460,0.8286455,161.64,161.61,15.4687]
[1721145397770,0.8286455,161.64,161.63,6.1869]
[1721145399173,0.8286455,161.64,161.63,7.42398043]
[1721145399667,0.8286455,161.64,161.63,6.1869]
[1721145401487,6.46602965,161.78,161.72,6.1832]
[1721145401651,6.1809,161.79,161.73,6.1829]
[1721145401845,6.1809,161.79,161.74,6.1826]
[1721145402051,18.65,161.82,161.73,15.4572]
[1721145402052,6.1804,161.81,161.73,15.4572]
[1721145402246,6.46672555,161.82,161.77,6.1814]
[1721145402446,6.1794,161.83,161.78,6.181]
[1721145402669,6.1797,161.82,161.77,6.1815]
[1721145402859,6.1797,161.82,161.71,30.9183]
[1721145402860,6.46650416,161.85,161.78,21.6341]
[1721145403054,6.46650416,161.85,161.78,15.453]
[1721145403261,6.46650416,161.85,161.73,1.23557188]
[1721145403556,43.23184194,161.87,161.74,1.23622981]
[1721145403865,49.69700392,161.87,161.79,6.1808]
[1721145404041,15.00480392,161.87,161.79,6.1808]
[1721145404246,8.82700392,161.87,161.86,6.1781]
[1721145404441,6.1798,161.82,161.74,15.456]
[1721145404669,18.65,161.86,161.74,15.456]
[1721145404872,34.0963,161.86,161.74,15.456]
[1721145405055,6.1797,161.82,161.76,6.1819]
[1721145405255,34.0963,161.86,161.74,15.456]
[1721145405449,6.1797,161.82,161.75,6.182]
[1721145405642,2.36184194,161.87,161.76,15.4542]
[1721145405859,6.1797,161.82,161.76,21.6361]
[1721145406065,41.01184194,161.87,161.72,15.4581]
[1721145406369,6.1796,161.83,161.76,6.1818]
[1721145406556,6.1804,161.8,161.74,21.6387]
[1721145406872,38.65,161.79,161.67,6.1851]
[1721145407072,38.65,161.79,161.64,16.0781]
[1721145407073,0.17,161.78,161.65,6.1858]
[1721145407373,0.17,161.78,161.59,6.5098]
[1721145407374,0.34,161.78,161.59,6.5098]
[1721145407558,0.34,161.78,161.67,15.4634]
[1721145407767,0.34,161.78,161.59,7.74686227]
[1721145407768,6.1836,161.72,161.59,6.5098]
[1721145407959,6.1836,161.72,161.65,15.4647]
[1721145408175,6.5231,161.73,161.66,6.1857]
[1721145408383,6.5231,161.73,161.65,6.186]
[1721145408384,0.34,161.73,161.65,6.186]
[1721145408679,0.34,161.73,161.62,15.4683]
[1721145408680,6.184,161.71,161.62,15.4683]
[1721145408886,6.1836,161.72,161.66,6.1855]
[1721145409183,0.17,161.73,161.59,6.5098]
[1721145409380,0.17,161.71,161.59,6.5098]
[1721145409584,26.5232,161.73,161.66,6.1855]
[1721145409783,20.17,161.73,161.67,6.1853]
[1721145409984,6.1835,161.72,161.66,21.65]
[1721145410179,47.0523,161.76,161.69,15.4615]
[1721145410479,15.4525,161.79,161.65,15.4652]
[1721145410681,6.1837,161.72,161.65,15.4652]
[1721145410878,15.4549,161.77,161.65,15.4652]
[1721145411361,6.1835,161.72,161.65,15.4652]